bitfinex/quotes_BTCUSD_20251214
["timestamp","ask_amount","ask_price","bid_price","bid_amount"]
[1765694831128,0.22171719,90205.0,90204.0,0.987335]
[1765694832755,0.22171719,90205.0,90204.0,0.001]
[1765694834956,0.22171719,90205.0,90204.0,0.1969]
[1765694835156,0.22171719,90205.0,90204.0,0.001]
[1765694835352,0.22171719,90205.0,90204.0,0.1975]
[1765694835918,0.22171719,90205.0,90204.0,0.001]
[1765694837713,0.22171719,90205.0,90204.0,0.1981]
[1765694837931,0.22171719,90205.0,90204.0,0.001]
[1765694838145,0.22171719,90205.0,90204.0,0.987335]
[1765694845136,0.22171719,90205.0,90204.0,0.001]
[1765694848281,0.22333006,90205.0,90204.0,0.00090312]
[1765694849460,0.00161287,90205.0,90204.0,0.00090312]
[1765694849675,0.00161287,90205.0,90204.0,0.01674312]
[1765694849888,0.00161287,90205.0,90204.0,0.03985312]
[1765694850090,0.01108561,90207.0,90204.0,0.0509391]
[1765694850327,0.01108561,90207.0,90205.0,0.01154]
[1765694850567,0.01108561,90207.0,90205.0,0.03465]
[1765694850893,0.23278976,90211.0,90206.0,0.26066234]
[1765694851099,0.23278976,90211.0,90210.0,0.02738]
[1765694851304,0.26607426,90214.0,90210.0,0.03846524]
[1765694851522,0.0110845,90216.0,90211.0,0.25589757]
[1765694851705,0.23276879,90219.0,90213.0,0.2327824]
[1765694852024,0.01108426,90218.0,90213.0,0.2327824]
[1765694852223,0.01108426,90218.0,90213.0,0.2558924]
[1765694852418,0.01108426,90218.0,90214.0,0.02311]
[1765694852631,0.01108426,90218.0,90217.0,0.01154]
[1765694853029,0.25497215,90220.0,90218.0,0.986335]
[1765694853229,0.25497215,90220.0,90217.0,0.05049]
[1765694853230,0.01108389,90221.0,90219.0,0.01584]
[1765694853462,0.01108389,90221.0,90220.0,0.01584]
[1765694854245,0.22167741,90222.0,90220.0,0.01584]
[1765694854890,0.001,90221.0,90220.0,0.01584]
[1765694855094,0.001,90221.0,90218.0,0.01108426]
[1765694856300,0.2327646,90220.0,90218.0,0.986335]
[1765694856466,0.01108401,90220.0,90218.0,0.986335]
[1765694858121,0.23275986,90222.0,90218.0,0.986335]
[1765694858289,0.001,90220.0,90218.0,0.986335]
[1765694859645,0.01108389,90221.0,90218.0,0.986335]
[1765694860696,0.001,90220.0,90218.0,0.986335]
[1765694861300,0.01108389,90221.0,90218.0,0.986335]
[1765694861515,0.01108413,90219.0,90212.0,0.23278295]
[1765694861679,0.3587615,90219.0,90213.0,0.01748]
[1765694861893,0.0110845,90216.0,90213.0,0.01748]
[1765694862069,0.0110845,90216.0,90213.0,0.02856487]
[1765694862275,0.0110845,90216.0,90213.0,0.25026215]
[1765694862475,0.01108438,90217.0,90214.0,0.01108475]
[1765694862697,0.23277234,90217.0,90214.0,0.01108475]
[1765694863283,0.01108438,90217.0,90214.0,0.01108475]
[1765694864116,0.01108438,90217.0,90212.0,0.25026285]
[1765694864117,0.01108463,90215.0,90212.0,0.01748]
[1765694864318,0.01108463,90215.0,90210.0,0.01748]
[1765694864319,0.22170245,90211.0,90210.0,0.01748]
[1765694864551,0.34178469,90211.0,90210.0,0.01748]
[1765694866272,0.23279773,90208.0,90205.0,0.0332917]
[1765694866477,0.22171425,90207.0,90205.0,0.0507717]
[1765694866687,0.00946,90206.0,90205.0,0.01748]
[1765694866912,0.12008224,90206.0,90205.0,0.01748]
[1765694867539,0.00946,90206.0,90205.0,0.01748]
[1765694868054,0.00946,90206.0,90205.0,0.01848]
[1765694868466,0.00946,90206.0,90205.0,0.01948]
[1765694870162,0.13545224,90206.0,90205.0,0.002]
[1765694871043,0.0110861,90203.0,90199.0,0.02856659]
[1765694871267,0.0110861,90203.0,90200.0,0.986335]
[1765694871777,0.0114721,90203.0,90201.0,0.986335]
[1765694872412,0.000386,90203.0,90201.0,0.986335]
[1765694873001,0.000386,90203.0,90202.0,0.986335]
[1765694874207,0.000386,90203.0,90201.0,0.986335]
[1765694874583,0.000386,90203.0,90202.0,0.987335]
[1765694874785,0.000386,90203.0,90202.0,0.988335]
[1765694875183,0.000386,90203.0,90202.0,0.987335]
[1765694876129,0.000386,90203.0,90201.0,0.986335]
[1765694876324,0.000386,90203.0,90202.0,0.987335]
[1765694876873,0.000386,90203.0,90202.0,1.20905957]
[1765694877047,0.000386,90203.0,90202.0,1.24998957]
[1765694878483,0.000386,90203.0,90202.0,1.25098957]
[1765694881889,0.000386,90203.0,90202.0,1.25091556]
[1765694886677,0.000386,90203.0,90202.0,1.26276556]
[1765694897546,0.000386,90203.0,90202.0,1.26269541]
[1765694917717,0.000386,90203.0,90202.0,1.26269557]
[1765694926770,0.000386,90203.0,90202.0,0.27650457]
[1765694926948,0.000386,90203.0,90202.0,1.26269557]
[1765694927728,0.000386,90203.0,90202.0,0.27650457]
[1765694927929,0.000386,90203.0,90202.0,1.26269557]
[1765694932860,0.000386,90203.0,90202.0,0.27650457]
[1765694933066,0.000386,90203.0,90202.0,1.26269557]
[1765694940967,0.000386,90203.0,90202.0,1.26269557]
[1765694945229,0.000386,90203.0,90202.0,0.27650457]
[1765694945389,0.000386,90203.0,90202.0,1.26269557]
[1765694951695,0.000386,90203.0,90202.0,1.27378106]
[1765694952072,0.000386,90203.0,90202.0,1.04493649]
[1765694954322,0.000386,90203.0,90202.0,1.06921649]
[1765694955992,0.000386,90203.0,90202.0,1.05173649]
[1765694956169,0.000386,90203.0,90202.0,1.06921649]
[1765694956348,0.000386,90203.0,90202.0,1.29094106]
[1765694957454,0.000386,90203.0,90202.0,0.99927649]
[1765694958610,0.000386,90203.0,90202.0,1.01111649]
[1765694958827,0.000386,90203.0,90202.0,1.03539649]
[1765694959026,0.000386,90203.0,90202.0,1.05116649]
[1765694970439,0.000386,90203.0,90202.0,1.04967879]
[1765694970620,0.000386,90203.0,90202.0,0.06348779]
[1765694970822,0.000386,90203.0,90202.0,1.04967879]
[1765694971877,0.000386,90203.0,90202.0,0.06348779]
[1765694972096,0.000386,90203.0,90202.0,1.04967879]
[1765694986540,0.000386,90203.0,90202.0,1.04960169]
[1765695003706,0.000386,90203.0,90202.0,0.06334311]
[1765695004037,0.000386,90203.0,90202.0,1.04953411]
[1765695004712,0.000386,90203.0,90202.0,0.06334311]
[1765695004914,0.000386,90203.0,90202.0,1.04953411]
[1765695005722,0.000386,90203.0,90202.0,0.06334311]
[1765695005926,0.000386,90203.0,90202.0,1.04953411]
[1765695006717,0.000386,90203.0,90202.0,0.06334311]
[1765695006923,0.000386,90203.0,90202.0,1.04953411]
[1765695007729,0.000386,90203.0,90202.0,0.06334311]
[1765695007926,0.000386,90203.0,90202.0,1.04953411]
[1765695020181,0.000386,90203.0,90202.0,1.04948268]
[1765695029196,0.000386,90203.0,90202.0,0.06329168]
[1765695029394,0.000386,90203.0,90202.0,1.04948268]
[1765695030238,0.000386,90203.0,90202.0,0.06329168]
[1765695030448,0.000386,90203.0,90202.0,1.04948268]
[1765695031228,0.000386,90203.0,90202.0,0.06329168]
[1765695031457,0.000386,90203.0,90202.0,1.04948268]
[1765695038775,0.000386,90203.0,90202.0,1.04935397]
[1765695045467,0.000386,90203.0,90202.0,0.06316297]
[1765695045632,0.000386,90203.0,90202.0,1.04935397]
[1765695046433,0.000386,90203.0,90202.0,0.06316297]
[1765695046653,0.000386,90203.0,90202.0,1.04935397]
[1765695048590,0.000386,90203.0,90202.0,0.06316297]
[1765695048796,0.000386,90203.0,90202.0,1.04935397]
[1765695052629,0.000386,90203.0,90202.0,0.06316297]
[1765695052827,0.000386,90203.0,90202.0,1.04935397]
[1765695056257,0.000386,90203.0,90202.0,1.04930254]
[1765695058838,0.000386,90203.0,90202.0,0.06311154]
[1765695059038,0.000386,90203.0,90202.0,1.04930254]
[1765695075229,0.000386,90203.0,90202.0,1.02502254]
[1765695076479,0.000386,90203.0,90202.0,1.0245667]
[1765695083991,0.000386,90203.0,90202.0,1.0475467]
[1765695085207,0.000386,90203.0,90202.0,1.0245667]
[1765695089894,0.000386,90203.0,90202.0,1.003671]
[1765695093431,0.000386,90203.0,90202.0,0.986191]
[1765695093636,0.040326,90203.0,90202.0,1.003671]
[1765695093834,0.15094824,90203.0,90202.0,1.003671]
[1765695094307,0.040326,90203.0,90202.0,1.003671]
[1765695094584,0.15094824,90203.0,90202.0,1.003671]
[1765695099448,0.12746824,90203.0,90202.0,1.003671]
[1765695100185,0.01108708,90195.0,90193.0,0.986191]
[1765695100385,0.01108708,90195.0,90194.0,1.003671]
[1765695101026,0.2422831,90198.0,90195.0,0.986191]
[1765695102008,0.23282571,90197.0,90195.0,0.986191]
[1765695102393,0.23282571,90197.0,90196.0,0.986191]
[1765695103960,0.22174119,90196.0,90195.0,0.986191]
[1765695104161,0.23282571,90197.0,90195.0,0.2321]
[1765695104343,0.23282571,90197.0,90196.0,0.9477]
[1765695104504,0.36692795,90197.0,90196.0,0.8439]
[1765695104710,0.38338795,90197.0,90196.0,0.8439]
[1765695104910,0.27276571,90197.0,90191.0,0.03329587]
[1765695105111,0.27276571,90197.0,90189.0,0.01108782]
[1765695105112,0.02592,90192.0,90189.0,0.01108782]
[1765695105443,0.02592,90192.0,90190.0,0.05077631]
[1765695105663,0.22175161,90191.0,90190.0,0.03329631]
[1765695105834,0.22175161,90191.0,90190.0,0.05077631]
[1765695106242,0.22175161,90191.0,90190.0,0.01748]
[1765695107042,0.22176848,90185.0,90184.0,0.1892]
[1765695107295,0.22176848,90185.0,90184.0,0.20668]
[1765695107459,0.22176848,90185.0,90184.0,0.15658]
[1765695107656,0.22176848,90185.0,90184.0,0.11748]
[1765695108283,0.22176848,90185.0,90184.0,0.01748]
[1765695108495,0.2328543,90186.0,90185.0,0.2131]
[1765695108709,0.2328543,90186.0,90184.0,0.01848]
[1765695110108,0.2328543,90186.0,90184.0,0.01748]
[1765695110309,0.2328543,90186.0,90184.0,0.01848]
[1765695110608,0.2328543,90186.0,90185.0,0.001]
[1765695110808,0.2328543,90186.0,90184.0,0.01848]
[1765695111133,0.2328543,90186.0,90184.0,0.01948]
[1765695111294,0.01108819,90186.0,90185.0,0.9076]
[1765695111661,0.01108819,90186.0,90185.0,0.9086]
[1765695112263,0.01108819,90186.0,90185.0,0.987191]
[1765695113821,0.01108819,90186.0,90185.0,0.988191]
[1765695115395,0.22176283,90187.0,90186.0,0.986191]
[1765695115597,0.00946,90188.0,90186.0,0.986191]
[1765695117613,0.00946,90188.0,90187.0,0.986191]
[1765695118182,0.00946,90188.0,90186.0,0.986191]
[1765695119391,0.02054794,90188.0,90185.0,0.986191]
[1765695119815,0.04826781,90188.0,90185.0,0.986191]
[1765695121245,0.15889005,90188.0,90185.0,0.986191]
[1765695121599,0.04826781,90188.0,90185.0,0.986191]
[1765695124566,0.02771987,90188.0,90185.0,1.21904538]
[1765695124799,0.01108733,90193.0,90184.0,0.02856844]
[1765695124800,0.03329986,90197.0,90196.0,0.22173932]
[1765695125012,0.0114721,90203.0,90199.0,0.01108659]
[1765695125219,0.000386,90203.0,90202.0,0.02722]
[1765695125633,0.000386,90203.0,90202.0,0.05052]
[1765695125841,0.000386,90203.0,90198.0,0.24410876]
[1765695125842,0.01108635,90201.0,90197.0,0.2866]
[1765695125958,0.11062224,90198.0,90197.0,0.29768684]
[1765695126182,0.11062224,90198.0,90197.0,0.13218684]
[1765695127050,0.03926,90198.0,90196.0,0.01748]
[1765695127247,0.0536071,90197.0,90196.0,0.01748]
[1765695127757,0.0371771,90197.0,90196.0,0.01748]
[1765695128316,0.00946,90197.0,90196.0,0.01748]
[1765695130945,0.0277168,90198.0,90196.0,0.01748]
[1765695131976,0.22173686,90197.0,90196.0,0.01748]
[1765695134567,0.23282022,90199.0,90196.0,0.01748]
[1765695134776,0.22173686,90197.0,90196.0,0.01748]
[1765695140995,0.23282022,90199.0,90196.0,0.01748]
[1765695141196,0.0277168,90198.0,90196.0,0.01748]
[1765695142243,0.27228354,90198.0,90196.0,0.01748]
[1765695142466,0.24456674,90198.0,90196.0,0.01748]
[1765695142620,0.0277171,90197.0,90196.0,0.01748]
[1765695142819,0.0277168,90198.0,90196.0,0.01748]
[1765695143798,0.24945333,90198.0,90196.0,0.01748]
[1765695144000,0.22173653,90198.0,90196.0,0.01748]
[1765695144140,0.24945333,90198.0,90196.0,0.01748]
[1765695145220,0.22173653,90198.0,90196.0,0.01748]
[1765695148679,0.22173443,90198.0,90196.0,0.01748]
[1765695151926,0.22173633,90198.0,90196.0,0.01748]
[1765695152491,0.01108635,90201.0,90197.0,0.05319]
[1765695152903,0.01108635,90201.0,90198.0,0.0246]
[1765695153753,0.01108647,90200.0,90198.0,0.0246]
[1765695155254,0.01108635,90201.0,90198.0,0.03568672]
[1765695159747,0.23281548,90201.0,90198.0,0.0246]
[1765695162409,0.01108635,90201.0,90198.0,0.0246]
[1765695162619,0.01108635,90201.0,90198.0,0.03568672]
[1765695164340,0.22172668,90202.0,90199.0,0.04781659]
[1765695164545,0.2328129,90202.0,90199.0,0.04781659]
[1765695164923,0.2328129,90202.0,90199.0,0.02321659]
[1765695166383,0.2338129,90202.0,90199.0,0.02321659]
[1765695171557,0.001,90202.0,90201.0,0.02859]
[1765695171970,0.001,90202.0,90201.0,0.05319]
[1765695172476,0.000386,90203.0,90201.0,0.05319]
[1765695172669,0.000386,90203.0,90202.0,0.26278457]
[1765695173910,0.001386,90203.0,90202.0,0.26278457]
[1765695174343,0.000386,90203.0,90202.0,1.24897557]
[1765695175505,0.001386,90203.0,90202.0,1.24897557]
[1765695224396,0.001386,90203.0,90202.0,1.22437557]
[1765695227289,0.001386,90203.0,90202.0,0.9499]
[1765695227436,0.001386,90203.0,90197.0,0.24495125]
[1765695227437,0.001386,90203.0,90201.0,0.1847]
[1765695227638,0.22173194,90199.0,90198.0,0.2181]
[1765695228178,0.22173194,90199.0,90196.0,0.01748]
[1765695228179,0.23281853,90199.0,90196.0,0.2114]
[1765695228383,0.22174372,90195.0,90193.0,0.01748]
[1765695228558,0.00946,90194.0,90193.0,0.01748]
[1765695230485,0.00946,90194.0,90193.0,0.01848]
[1765695230707,0.00946,90194.0,90193.0,0.01748]
[1765695230909,0.00946,90194.0,90193.0,0.01848]
[1765695231261,0.00946,90194.0,90193.0,0.01948]
[1765695233120,0.01108696,90196.0,90193.0,0.01948]
[1765695234073,0.01108696,90196.0,90193.0,0.02956733]
[1765695234285,0.01108696,90196.0,90193.0,0.02856733]
[1765695234481,0.01108696,90196.0,90193.0,0.03056733]
[1765695234676,0.01108696,90196.0,90193.0,0.25231393]
[1765695234978,0.00946,90197.0,90194.0,0.01108721]
[1765695235556,0.02054684,90197.0,90194.0,0.01108721]
[1765695240702,0.00946,90197.0,90194.0,0.01108721]
[1765695241183,0.00946,90197.0,90195.0,0.22174178]
[1765695248505,0.00946,90197.0,90194.0,0.01108721]
[1765695248705,0.0277171,90197.0,90196.0,0.22173932]
[1765695248905,0.02856733,90202.0,90196.0,0.22173932]
[1765695248906,0.02856733,90202.0,90200.0,0.22172772]
[1765695249128,0.02856733,90202.0,90201.0,0.01134]
[1765695250372,0.02956733,90202.0,90201.0,0.01134]
[1765695255930,0.02956733,90202.0,90200.0,0.23306736]
[1765695256731,0.02856733,90202.0,90200.0,0.23306736]
[1765695257895,0.000386,90203.0,90202.0,0.22172457]
[1765695258062,0.000386,90203.0,90202.0,0.23713457]
[1765695258283,0.02895333,90203.0,90202.0,0.26087457]
[1765695258769,0.000386,90203.0,90202.0,0.26087457]
[1765695259230,0.001386,90203.0,90202.0,0.26087457]
[1765695260176,0.001386,90203.0,90202.0,0.22172457]
[1765695302476,0.001386,90203.0,90202.0,1.65053603]
[1765695302704,0.01108549,90231.0,90224.0,0.2216705]
[1765695302896,0.01108217,90235.0,90224.0,1.2419615]
[1765695303097,0.01108192,90237.0,90224.0,1.2665515]
[1765695303476,0.01108192,90237.0,90224.0,1.29983551]
[1765695304268,0.01108217,90235.0,90224.0,1.29983551]
[1765695304473,0.01108205,90236.0,90224.0,1.30183551]
[1765695304893,0.02216372,90238.0,90224.0,1.30183551]
[1765695305074,0.01108192,90238.0,90224.0,1.30183551]
[1765695306141,0.01108156,90240.0,90224.0,1.30183551]
[1765695306386,0.01108192,90239.0,90224.0,1.30183551]
[1765695307683,0.02054106,90244.0,90224.0,1.30183551]
[1765695307911,0.01108192,90243.0,90224.0,1.41254597]
[1765695308352,0.01108131,90242.0,90224.0,1.41280269]
[1765695308796,0.02216311,90243.0,90224.0,1.41280269]
[1765695309025,0.01108192,90243.0,90224.0,1.30109223]
[1765695309245,0.02054106,90244.0,90224.0,1.30309223]
[1765695309670,0.02054106,90244.0,90224.0,1.41580269]
[1765695310539,0.01108131,90242.0,90224.0,1.41580269]
[1765695310674,0.01108119,90243.0,90224.0,1.41580269]
[1765695311505,0.01108131,90242.0,90224.0,0.42961169]
[1765695311719,0.01108131,90242.0,90224.0,1.41580269]
[1765695313400,0.01108119,90243.0,90224.0,1.41580269]
[1765695313629,0.031622,90245.0,90224.0,1.41580269]
[1765695314575,0.01108106,90244.0,90224.0,1.41580269]
[1765695317110,0.031622,90245.0,90224.0,1.30509223]
[1765695317326,0.01108119,90243.0,90224.0,1.41580269]
[1765695318569,0.01108106,90244.0,90224.0,0.42961169]
[1765695318777,0.01108106,90244.0,90224.0,1.41580269]
[1765695320355,0.01108119,90243.0,90224.0,1.41580269]
[1765695320751,0.01108106,90244.0,90224.0,1.41580269]
[1765695321647,0.02216213,90245.0,90224.0,1.41580269]
[1765695322566,0.01108106,90244.0,90224.0,1.41580269]
[1765695324389,0.02216213,90245.0,90224.0,1.41580269]
[1765695324822,0.01108106,90244.0,90224.0,1.41580269]
[1765695325236,0.02216213,90245.0,90224.0,1.41580269]
[1765695325483,0.01108106,90244.0,90224.0,1.41580269]
[1765695326291,0.02054131,90242.0,90224.0,1.41580269]
[1765695326500,0.24216824,90242.0,90224.0,1.30509223]
[1765695326724,0.24216824,90242.0,90224.0,0.78092073]
[1765695326725,0.01108315,90227.0,90224.0,0.78092073]
[1765695326928,0.03992896,90225.0,90224.0,0.89964073]
[1765695327145,0.01675896,90225.0,90224.0,0.91712073]
[1765695327346,0.01675896,90225.0,90224.0,0.95603073]
[1765695327347,0.00023896,90225.0,90224.0,0.95603073]
[1765695327520,0.00023896,90225.0,90224.0,0.95303073]
[1765695327948,0.00023896,90225.0,90224.0,1.07712173]
[1765695328161,0.00023896,90225.0,90224.0,1.03721173]
[1765695328372,0.00023896,90225.0,90224.0,0.15024073]
[1765695328546,0.00023896,90225.0,90224.0,0.17072073]
[1765695328752,0.04154183,90225.0,90224.0,0.05402073]
[1765695328956,0.26320988,90225.0,90224.0,0.03654073]
[1765695329137,0.26320988,90225.0,90224.0,0.03854073]
[1765695329551,0.37383212,90225.0,90224.0,0.00325672]
[1765695329936,0.37483212,90225.0,90224.0,0.00325672]
[1765695330146,0.37483212,90225.0,90224.0,0.00025672]
[1765695330348,0.37483212,90225.0,90224.0,0.00125672]
[1765695330787,0.37483212,90225.0,90224.0,0.00025672]
[1765695338447,0.38591687,90225.0,90224.0,0.00025672]
[1765695353800,0.25212463,90225.0,90224.0,0.00025672]
[1765695354249,0.36274687,90225.0,90224.0,0.00025672]
[1765695354853,0.38591687,90225.0,90224.0,0.00025672]
[1765695358049,0.37483212,90225.0,90224.0,0.00025672]
[1765695379076,0.38463212,90225.0,90224.0,0.00025672]
[1765695391436,0.25083988,90225.0,90224.0,0.00025672]
[1765695392375,0.27363988,90225.0,90224.0,0.00025672]
[1765695397343,0.38426212,90225.0,90224.0,0.00025672]
[1765695399026,0.11062224,90206.0,90205.0,0.05975162]
[1765695399228,0.33233943,90205.0,90204.0,0.07723162]
[1765695399661,0.26004719,90205.0,90204.0,0.07723162]
[1765695399870,0.26004719,90205.0,90203.0,0.05975162]
[1765695400070,0.23281338,90201.0,90198.0,0.07723162]
[1765695400295,0.22172949,90200.0,90199.0,0.1339]
[1765695400500,0.23164949,90200.0,90199.0,0.1339]
[1765695401623,0.00992,90200.0,90199.0,0.1339]
[1765695402187,0.00992,90200.0,90199.0,0.1359]
[1765695402582,0.00992,90200.0,90199.0,0.1339]
[1765695404898,0.00992,90200.0,90198.0,0.01848]
[1765695405326,0.00992,90200.0,90199.0,0.000747]
[1765695406663,0.00992,90200.0,90199.0,0.99147894]
[1765695410918,0.00992,90200.0,90199.0,0.32867894]
[1765695414235,0.00992,90200.0,90199.0,0.000747]
[1765695420517,0.02100622,90202.0,90199.0,0.01183359]
[1765695420725,0.02100622,90202.0,90199.0,0.01108659]
[1765695421618,0.01108622,90202.0,90199.0,0.01108659]
[1765695423668,0.12170822,90204.0,90200.0,0.01108647]
[1765695423870,0.11062224,90204.0,90201.0,0.23281152]
[1765695424073,0.11062224,90207.0,90205.0,0.22171719]
[1765695424247,0.12170723,90212.0,90209.0,0.01108536]
[1765695424452,0.11062224,90212.0,90209.0,0.02250536]
[1765695424609,0.11062224,90212.0,90210.0,0.22170491]
[1765695424812,0.01108463,90215.0,90211.0,0.02250512]
[1765695425012,0.01108463,90215.0,90211.0,0.04676512]
[1765695425213,0.23277983,90214.0,90211.0,0.03568]
[1765695426558,0.001,90212.0,90211.0,0.01142]
[1765695426902,0.23277983,90214.0,90211.0,0.01180839]
[1765695427114,0.23277983,90214.0,90211.0,0.01142]
[1765695427335,0.23377983,90214.0,90211.0,0.01142]
[1765695432274,0.23377983,90214.0,90213.0,0.00032863]
[1765695433060,0.23277983,90214.0,90213.0,0.00032863]
[1765695433463,0.23377983,90214.0,90213.0,0.00032863]
[1765695434048,0.01208475,90214.0,90213.0,0.00032863]
[1765695442178,0.001,90214.0,90213.0,0.00032863]
[1765695451621,0.22269508,90214.0,90213.0,0.00032863]
[1765695463889,0.34962732,90214.0,90213.0,0.00032863]
[1765695464093,0.37275732,90214.0,90213.0,0.00032863]
[1765695464291,0.38417732,90214.0,90213.0,0.00032863]
[1765695478147,0.27355508,90214.0,90213.0,0.00032863]
[1765695478370,0.38417732,90214.0,90213.0,0.00032863]
[1765695497912,0.27355508,90214.0,90213.0,0.00032863]
[1765695499910,0.38417732,90214.0,90213.0,0.00032863]
[1765695527675,0.25042508,90214.0,90213.0,0.00032863]
[1765695527877,0.23411508,90214.0,90213.0,0.00032863]
[1765695530961,0.38463732,90214.0,90213.0,0.00032863]
[1765695542072,0.36107732,90214.0,90213.0,0.00032863]
[1765695542269,0.25045508,90214.0,90213.0,0.00032863]
[1765695542469,0.36107732,90214.0,90213.0,0.00032863]
[1765695542896,0.38369732,90214.0,90213.0,0.00032863]
[1765695543276,0.36107732,90214.0,90213.0,0.00032863]
[1765695545707,0.38369732,90214.0,90213.0,0.00032863]
[1765695584171,0.39361732,90214.0,90213.0,0.00032863]
[1765695600147,0.35465732,90214.0,90213.0,0.00032863]
[1765695600544,0.01242,90214.0,90213.0,0.01266863]
[1765695600758,0.07331426,90214.0,90213.0,0.01266863]
[1765695602387,0.07331426,90214.0,90213.0,0.00032863]
[1765695604724,0.25107838,90214.0,90213.0,0.00032863]
[1765695604951,0.2233665,90214.0,90213.0,0.00032863]
[1765695655742,0.2233665,90214.0,90213.0,0.00023365]
[1765695662101,0.2332865,90214.0,90213.0,0.00023365]
[1765695679023,0.2092765,90214.0,90213.0,0.00023365]
[1765695681141,0.2341565,90214.0,90213.0,0.00023365]
[1765695699199,0.1938565,90214.0,90213.0,0.00023365]
[1765695699440,0.1839365,90214.0,90213.0,0.00023365]
[1765695705892,0.21164838,90214.0,90213.0,0.00023365]
[1765695717852,0.1839365,90214.0,90213.0,0.00023365]
[1765695729275,0.25193838,90214.0,90213.0,0.00023365]
[1765695729523,0.2242265,90214.0,90213.0,0.00023365]
[1765695739649,0.1999765,90214.0,90213.0,0.00023365]
[1765695743028,0.2242265,90214.0,90213.0,0.00023365]
[1765695784638,0.52530959,90214.0,90213.0,0.00023365]
[1765695784844,0.549233,90214.0,90213.0,0.00023365]
[1765695785281,0.52530959,90214.0,90213.0,0.00023365]
[1765695785716,0.52430959,90214.0,90213.0,0.00023365]
[1765695786133,0.52630959,90214.0,90213.0,0.00023365]
[1765695787338,0.52830959,90214.0,90213.0,0.00023365]
[1765695788235,0.52829765,90214.0,90213.0,0.00023365]
[1765695788842,0.5179265,90214.0,90213.0,0.00023365]
[1765695791864,0.5354065,90214.0,90213.0,0.00023365]
[1765695812416,0.54577824,90214.0,90213.0,0.00023365]
[1765695813981,0.54578065,90214.0,90213.0,0.00023365]
[1765695833627,0.54578065,90214.0,90213.0,3.65e-06]
[1765695835474,0.54578459,90214.0,90213.0,3.65e-06]
[1765695843460,0.52830459,90214.0,90213.0,3.65e-06]
[1765695843672,0.004,90214.0,90213.0,0.02775365]
[1765695843893,0.004,90214.0,90213.0,3.65e-06]
[1765695843894,0.15517224,90214.0,90213.0,3.65e-06]
[1765695844355,0.18288412,90214.0,90213.0,3.65e-06]
[1765695844582,0.002,90214.0,90213.0,0.05125365]
[1765695845212,0.003,90214.0,90213.0,0.05125365]
[1765695845419,0.001,90214.0,90213.0,0.05125365]
[1765695846071,0.002,90214.0,90213.0,0.01149365]
[1765695846504,0.002,90214.0,90213.0,3.65e-06]
[1765695846505,0.001,90214.0,90213.0,3.65e-06]
[1765695846716,0.22169508,90214.0,90213.0,3.65e-06]
[1765695848436,0.23737508,90214.0,90213.0,3.65e-06]
[1765695848644,0.26224508,90214.0,90213.0,3.65e-06]
[1765695848844,0.37286732,90214.0,90213.0,3.65e-06]
[1765695848998,0.34799732,90214.0,90213.0,3.65e-06]
[1765695849196,0.23737508,90214.0,90213.0,3.65e-06]
[1765695849422,0.33231732,90214.0,90213.0,3.65e-06]
[1765695850037,0.33331732,90214.0,90213.0,3.65e-06]
[1765695851079,0.33431732,90214.0,90213.0,3.65e-06]
[1765695859540,0.34999732,90214.0,90213.0,3.65e-06]
[1765695859776,0.37486732,90214.0,90213.0,3.65e-06]
[1765695862404,0.33431732,90214.0,90213.0,3.65e-06]
[1765695866821,0.002,90214.0,90213.0,3.65e-06]
[1765695885003,0.002,90214.0,90213.0,0.03987365]
[1765695892260,0.001,90214.0,90213.0,0.03987365]
[1765695892465,0.23277654,90216.0,90213.0,0.01592365]
[1765695892678,0.23277654,90216.0,90213.0,0.01592]
[1765695893541,0.22169471,90215.0,90213.0,0.01592]
[1765695894419,0.22169471,90215.0,90211.0,0.01214]
[1765695894420,0.22169991,90213.0,90211.0,0.01214]
[1765695895934,0.22169991,90213.0,90211.0,0.01314]
[1765695896157,0.22169991,90213.0,90211.0,0.01414]
[1765695899117,0.23278176,90214.0,90211.0,0.01414]
[1765695900165,0.22169951,90213.0,90211.0,0.01414]
[1765695900404,0.22169951,90213.0,90211.0,0.01314]
[1765695900617,0.23278176,90214.0,90211.0,0.01214]
[1765695901067,0.23278176,90214.0,90209.0,0.04717536]
[1765695901068,0.23278498,90212.0,90209.0,0.01214]
[1765695901274,0.01108512,90211.0,90208.0,0.986191]
[1765695901532,0.22170692,90210.0,90208.0,0.986191]
[1765695901738,0.11062224,90209.0,90207.0,0.05984949]
[1765695902180,0.232795,90209.0,90206.0,0.05984949]
[1765695903689,0.22171228,90207.0,90206.0,0.05984949]
[1765695904547,0.22171228,90207.0,90206.0,0.06084949]
[1765695904983,0.22171228,90207.0,90206.0,0.05984949]
[1765695905204,0.22171228,90207.0,90206.0,0.06184949]
[1765695905854,0.33233452,90207.0,90206.0,0.002]
[1765695907444,0.22171228,90207.0,90205.0,0.00024269]
[1765695907684,0.11062224,90206.0,90205.0,0.00024269]
[1765695907896,0.12053138,90206.0,90205.0,0.00024269]
[1765695909673,0.12053138,90206.0,90205.0,0.00124269]
[1765695910295,0.12053138,90206.0,90205.0,0.00224269]
[1765695913892,0.00992,90206.0,90205.0,0.00224269]
[1765695930052,0.12053138,90206.0,90205.0,0.00224269]
[1765695930641,0.12053138,90206.0,90205.0,0.00024269]
[1765695932086,0.00992,90206.0,90205.0,0.00024269]
[1765695932303,0.15876138,90206.0,90205.0,0.00024269]
[1765695932731,0.13601138,90206.0,90205.0,0.00024269]
[1765695936374,0.12053138,90206.0,90205.0,0.00024269]
[1765695943498,0.13601138,90206.0,90205.0,0.00024269]
[1765695943700,0.15876138,90206.0,90205.0,0.00024269]
[1765695945234,0.13601138,90206.0,90205.0,0.00024269]
[1765695946929,0.0254,90206.0,90205.0,0.00024269]
[1765695947508,0.04815,90206.0,90205.0,0.00024269]
[1765695948235,0.15876138,90206.0,90205.0,0.00024269]
[1765695950830,0.18647572,90206.0,90205.0,0.00024269]
[1765695960509,0.07586434,90206.0,90205.0,0.00024269]
[1765695960947,0.18647572,90206.0,90205.0,0.00024269]
[1765695963886,0.21977203,90206.0,90205.0,0.00024269]
[1765695980340,0.22077203,90206.0,90205.0,0.00024269]
[1765695980953,0.22177203,90206.0,90205.0,0.00024269]
[1765696017339,0.19405769,90206.0,90205.0,0.00024269]
[1765696017551,0.17130769,90206.0,90205.0,0.00024269]
[1765696019583,0.15582769,90206.0,90205.0,0.00024269]
[1765696021476,0.03529631,90206.0,90205.0,0.03493269]
[1765696021688,0.002,90206.0,90205.0,0.05056269]
[1765696022102,0.002,90206.0,90205.0,1.03675369]
[1765696022889,0.002,90206.0,90205.0,1.04783881]